[Event "EYCC Open-U18 2019"]
[Site "Bratislava"]
[Date "2019.08.06"]
[Round "5.23"]
[White "Leisch, Lukas"]
[Black "Veleshnja, Zino"]
[Result "1/2-1/2"]
[ECO "E92"]
[WhiteElo "2327"]
[BlackElo "2131"]
[Annotator "NA"]
[PlyCount "103"]
[EventDate "2019.08.02"]
[EventType "swiss"]
[EventCountry "SVK"]
[SourceTitle "playchess.com"]
[Source "ChessBase"]
[SourceQuality "1"]
[TimeControl "40/5400+30:1800+30"]

1. c4 {[%emt 0:00:00]} Nf6 {[%emt 0:00:00]} 2. Nc3 {[%emt 0:00:00]} g6 {[%emt 0:00:00]} 3. e4 {[%emt 0:00:00]} d6 {[%emt 0:00:00]} 4. d4 {[%emt 0:00:00]} Bg7 {[%emt 0:00:00]} 5. Nf3 {[%emt 0:00:00]} O-O {[%emt 0:00:00]} 6. Be2 {[%emt 0:00:04]} e5 {[%emt 0:00:09]} 7. d5 {[%emt 0:00:06]} a5 {[%emt 0:00:57]} 8. Bg5 {[%emt 0:00:13]} Na6 {[%emt 0:01:29]} 9. Nd2 {[%emt 0:00:25]} Qe8 {[%emt 0:01:59]} 10. O-O {[%emt 0:04:05]} h6 {[%emt 0:00:37]} 11. Be3 {[%emt 0:01:00]} Bd7 {[%emt 0:00:21]} 12. b3 {[%emt 0:01:15]} Nh7 {[%emt 0:05:27]} 13. a3 {[%emt 0:00:40]} f5 {[%emt 0:00:29]} 14. f3 {[%emt 0:00:08]} f4 {[%emt 0:02:18]} 15. Bf2 {[%emt 0:00:04]} g5 {[%emt 0:01:30]} 16. b4 {[%emt 0:01:36]} Nf6 {[%emt 0:18:11]} 17. c5 {[%emt 0:05:22]} Qg6 {[%emt 0:01:39]} 18. c6 {[%emt 0:02:47]} bxc6 {[%emt 0:03:17]} 19. dxc6 {[%emt 0:00:06]} Be6 {[%emt 0:01:28]} 20. b5 {[%emt 0:00:42]} Nb8 {[%emt 0:09:43]} 21. Bc4 {[%emt 0:02:36]} Bxc4 {[%emt 0:04:04]} 22. Nxc4 {[%emt 0:00:07]} g4 {[%emt 0:01:48]} 23. Bh4 {[%emt 0:08:11]} g3 {[%emt 0:08:51]} 24. h3 {[%emt 0:02:30]} Ne8 {[%emt 0:05:09]} 25. Qd5+ {[%emt 0:07:10]} Kh7 {[%emt 0:05:43]} 26. Rfd1 {[%emt 0:02:53]} Rf7 {[%emt 0:05:15]} 27. Rac1 {[%emt 0:04:30]} Bf8 {[%emt 0:01:36]} 28. b6 {[%emt 0:05:49]} cxb6 {[%emt 0:04:13]} 29. Nb5 {[%emt 0:00:45]} Na6 {[%emt 0:03:46]} 30. Nbxd6 {[%emt 0:06:58]} Nxd6 {[%emt 0:00:40]} 31. Nxd6 {[%emt 0:01:35]} Bxd6 {[%emt 0:00:39]} 32. Qxd6 {[%emt 0:00:08]} Qxd6 {[%emt 0:04:14]} 33. Rxd6 {[%emt 0:00:05]} b5 {[%emt 0:03:53]} 34. Rd5 {[%emt 0:03:47]} Nc7 {[%emt 0:02:17]} 35. Rxe5 {[%emt 0:01:18]} b4 {[%emt 0:00:15]} 36. a4 {[%emt 0:02:05]} Ra6 {[%emt 0:01:04]} 37. Kf1 {[%emt 0:06:45]} b3 {[%emt 0:01:08]} 38. Ke2 {[%emt 0:00:50]} b2 {[%emt 0:00:26]} 39. Rb1 {[%emt 0:00:06]} Rxc6 {[%emt 0:00:28]} 40. Rxb2 {[%emt 0:00:00]} Ne6 {[%emt 0:00:00]} 41. Rxa5 {[%emt 0:04:18]} Kg6 {[%emt 0:11:14]} 42. Rd5 {[%emt 0:02:56]} Rfc7 {[%emt 0:02:47]} 43. a5 {[%emt 0:04:14]} Rc1 {[%emt 0:03:44]} 44. Rb6 {[%emt 0:06:28]} R7c2+ {[%emt 0:05:27]} 45. Rd2 {[%emt 0:00:17]} Kf7 {[%emt 0:02:28]} 46. Rb7+ {[%emt 0:03:39]} Kg6 {[%emt 0:00:10]} 47. Rbd7 {[%emt 0:11:40]} Rc3 {[%emt 0:00:32]} 48. Rd1 {[%emt 0:02:43]} R1c2+ {[%emt 0:02:09]} 49. R7d2 {[%emt 0:06:05]} Nd4+ {[%emt 0:02:09]} 50. Ke1 {[%emt 0:00:26]} Rxd2 {[%emt 0:02:05]} 51. Rxd2 {[%emt 0:05:54]} Nc2+ 52. Ke2 1/2-1/2

[Event "EYCC Open-U18 2019"]
[Site "Bratislava"]
[Date "2019.08.06"]
[Round "5.24"]
[White "Iliaguev, Nisim"]
[Black "Brozyna, Mateusz"]
[Result "1/2-1/2"]
[ECO "A20"]
[WhiteElo "2357"]
[BlackElo "2258"]
[Annotator "NA"]
[PlyCount "80"]
[EventDate "2019.08.02"]
[EventType "swiss"]
[EventCountry "SVK"]
[SourceTitle "playchess.com"]
[Source "ChessBase"]
[SourceQuality "1"]
[TimeControl "40/5400+30:1800+30"]

1. c4 {[%emt 0:00:00]} e5 {[%emt 0:00:00]} 2. g3 {[%emt 0:00:00]} Nf6 {[%emt 0:00:00]} 3. Bg2 {[%emt 0:00:00]} c6 {[%emt 0:00:02]} 4. Nc3 {[%emt 0:01:07]} d5 {[%emt 0:00:26]} 5. cxd5 {[%emt 0:00:04]} cxd5 {[%emt 0:00:07]} 6. d4 {[%emt 0:00:08]} exd4 {[%emt 0:01:03]} 7. Qxd4 {[%emt 0:01:53]} Nc6 {[%emt 0:00:08]} 8. Qd1 {[%emt 0:05:10]} d4 {[%emt 0:05:39]} 9. Ne4 {[%emt 0:00:33]} Bf5 {[%emt 0:05:32]} 10. Nxf6+ {[%emt 0:01:55]} Qxf6 {[%emt 0:00:08]} 11. Nf3 {[%emt 0:02:30]} Bc5 {[%emt 0:07:44]} 12. O-O {[%emt 0:01:57]} h6 {[%emt 0:01:23]} 13. Nd2 {[%emt 0:04:23]} O-O {[%emt 0:08:46]} 14. Ne4 {[%emt 0:00:26]} Qe7 {[%emt 0:00:59]} 15. Nxc5 {[%emt 0:00:30]} Qxc5 {[%emt 0:00:07]} 16. b3 {[%emt 0:07:12]} Rfe8 {[%emt 0:06:00]} 17. Bb2 {[%emt 0:02:25]} Rad8 {[%emt 0:05:51]} 18. Rc1 {[%emt 0:01:06]} Qb5 {[%emt 0:02:36]} 19. Re1 {[%emt 0:07:37]} Bg4 {[%emt 0:07:34]} 20. Rc4 {[%emt 0:01:50]} Qa5 {[%emt 0:14:16]} 21. Bxc6 {[%emt 0:06:19]} bxc6 {[%emt 0:00:43]} 22. b4 {[%emt 0:00:21]} Qxa2 {[%emt 0:03:45]} 23. Rxd4 {[%emt 0:00:30]} Rd5 {[%emt 0:00:43]} 24. Qd2 {[%emt 0:17:21]} Qc4 {[%emt 0:06:36]} 25. Rxd5 {[%emt 0:10:13]} cxd5 {[%emt 0:02:50]} 26. f3 {[%emt 0:00:18]} Bf5 {[%emt 0:03:03]} 27. Kf2 {[%emt 0:02:45]} Rb8 {[%emt 0:02:02]} 28. Bc3 {[%emt 0:00:22]} d4 {[%emt 0:07:49]} 29. Qxd4 {[%emt 0:03:04]} Qxd4+ {[%emt 0:00:06]} 30. Bxd4 {[%emt 0:00:03]} Rxb4 {[%emt 0:00:08]} 31. Bxa7 {[%emt 0:00:06]} Rb1 {[%emt 0:00:20]} 32. Rxb1 {[%emt 0:00:33]} Bxb1 {[%emt 0:00:07]} 33. e4 {[%emt 0:00:03]} f5 {[%emt 0:00:41]} 34. e5 {[%emt 0:00:18]} Kf7 {[%emt 0:00:22]} 35. Ke3 {[%emt 0:00:20]} Ke6 {[%emt 0:01:07]} 36. Kd4 {[%emt 0:01:09]} Ba2 {[%emt 0:00:27]} 37. Bc5 {[%emt 0:00:12]} g6 {[%emt 0:00:43]} 38. Bf8 {[%emt 0:00:36]} h5 {[%emt 0:02:56]} 39. Bg7 {[%emt 0:00:20]} Bd5 {[%emt 0:00:21]} 40. Ke3 {[%emt 0:00:00]} Ba2 {[%emt 0:00:00] Ke4 Kxe5+} 1/2-1/2

[Event "EYCC Open-U18 2019"]
[Site "Bratislava"]
[Date "2019.08.06"]
[Round "5.25"]
[White "Papp, Levente"]
[Black "Garanin, Aleksei"]
[Result "1-0"]
[ECO "A00"]
[WhiteElo "2362"]
[BlackElo "2192"]
[Annotator "NA"]
[PlyCount "65"]
[EventDate "2019.08.02"]
[EventType "swiss"]
[EventCountry "SVK"]
[SourceTitle "playchess.com"]
[Source "ChessBase"]
[SourceQuality "1"]
[TimeControl "40/5400+30:1800+30"]

1. g3 {[%emt 0:00:00]} Nf6 {[%emt 0:00:00]} 2. Bg2 {[%emt 0:00:00]} g6 {[%emt 0:00:00]} 3. c4 {[%emt 0:00:00]} Bg7 {[%emt 0:00:00]} 4. Nc3 {[%emt 0:00:00]} O-O {[%emt 0:00:00]} 5. e4 {[%emt 0:00:00]} e5 {[%emt 0:02:31]} 6. Nge2 {[%emt 0:00:00]} d6 {[%emt 0:04:53]} 7. O-O {[%emt 0:00:14]} c6 {[%emt 0:00:43]} 8. d3 {[%emt 0:00:05]} Nh5 {[%emt 0:02:45]} 9. Be3 {[%emt 0:01:27]} Be6 {[%emt 0:00:24]} 10. h3 {[%emt 0:05:13]} f5 {[%emt 0:04:19]} 11. exf5 {[%emt 0:00:45]} gxf5 {[%emt 0:00:07]} 12. f4 {[%emt 0:00:05]} Nd7 {[%emt 0:02:09]} 13. Qd2 {[%emt 0:05:45]} Kh8 {[%emt 0:04:35]} 14. Rad1 {[%emt 0:10:38]} Rg8 {[%emt 0:03:49]} 15. Kh2 {[%emt 0:04:00]} Qe8 {[%emt 0:01:55]} 16. Rg1 {[%emt 0:10:20]} Qg6 {[%emt 0:04:48]} 17. d4 {[%emt 0:21:33]} Bf6 {[%emt 0:16:24]} 18. Bh1 {[%emt 0:02:41]} e4 {[%emt 0:01:32]} 19. d5 {[%emt 0:00:29]} cxd5 {[%emt 0:00:07]} 20. Nxd5 {[%emt 0:09:38]} Rad8 {[%emt 0:02:11]} 21. Nd4 {[%emt 0:06:50]} Bxd5 {[%emt 0:00:18]} 22. cxd5 {[%emt 0:00:01]} Nc5 {[%emt 0:02:13]} 23. g4 {[%emt 0:04:06]} fxg4 {[%emt 0:00:31]} 24. hxg4 {[%emt 0:00:02]} Ng7 {[%emt 0:07:17]} 25. f5 {[%emt 0:00:19]} Be5+ {[%emt 0:00:17]} 26. Kh3 {[%emt 0:00:12]} Nxf5 {[%emt 0:12:21]} 27. Nxf5 {[%emt 0:00:27]} h5 {[%emt 0:00:01]} 28. Bxc5 {[%emt 0:02:25]} hxg4+ {[%emt 0:01:04]} 29. Kg2 {[%emt 0:00:04]} Qxf5 {[%emt 0:02:41]} 30. Qh6+ {[%emt 0:00:10]} Qh7 {[%emt 0:00:03]} 31. Qxh7+ {[%emt 0:00:06]} Kxh7 {[%emt 0:00:02]} 32. Bd4 {[%emt 0:00:53]} Bf4 {[%emt 0:00:48]} 33. Kf2 {[%emt 0:01:43]} 1-0

[Event "EYCC Open-U18 2019"]
[Site "Bratislava"]
[Date "2019.08.06"]
[Round "5.26"]
[White "Jakab, Bela"]
[Black "Nordquelle, Daniel"]
[Result "0-1"]
[ECO "B51"]
[WhiteElo "2278"]
[BlackElo "2181"]
[Annotator "NA"]
[PlyCount "80"]
[EventDate "2019.08.02"]
[EventType "swiss"]
[EventCountry "SVK"]
[SourceTitle "playchess.com"]
[Source "ChessBase"]
[SourceQuality "1"]
[TimeControl "40/5400+30:1800+30"]

1. e4 {[%emt 0:00:00]} c5 {[%emt 0:00:00]} 2. Nf3 {[%emt 0:00:00]} d6 {[%emt 0:00:00]} 3. Bb5+ {[%emt 0:00:00]} Nd7 {[%emt 0:00:00]} 4. O-O {[%emt 0:00:00]} a6 {[%emt 0:01:40]} 5. Bd3 {[%emt 0:00:00]} Ngf6 {[%emt 0:00:07]} 6. c3 {[%emt 0:00:13]} g6 {[%emt 0:02:28]} 7. Bc2 {[%emt 0:00:21]} Bg7 {[%emt 0:00:06]} 8. d4 {[%emt 0:00:26]} Qc7 {[%emt 0:10:30]} 9. Re1 {[%emt 0:02:20]} e5 {[%emt 0:00:35]} 10. a4 {[%emt 0:03:01]} b6 {[%emt 0:02:35]} 11. Nbd2 {[%emt 0:06:10]} cxd4 {[%emt 0:12:42]} 12. cxd4 {[%emt 0:00:06]} O-O {[%emt 0:00:05]} 13. b3 {[%emt 0:04:30]} Bb7 {[%emt 0:12:18]} 14. Ba3 {[%emt 0:10:36]} exd4 {[%emt 0:07:55]} 15. Rc1 {[%emt 0:02:30]} Rfe8 {[%emt 0:04:03]} 16. Nxd4 {[%emt 0:03:17]} d5 {[%emt 0:12:14]} 17. exd5 {[%emt 0:03:48]} Nxd5 {[%emt 0:02:06]} 18. Bxg6 {[%emt 0:20:35]} Qf4 {[%emt 0:08:04]} 19. Rxe8+ {[%emt 0:03:39]} Rxe8 {[%emt 0:00:27]} 20. g3 {[%emt 0:00:30]} Qxf2+ {[%emt 0:03:35]} 21. Kxf2 {[%emt 0:03:44]} Bxd4+ {[%emt 0:00:05]} 22. Kf3 {[%emt 0:01:41]} Re3+ {[%emt 0:12:26]} 23. Kg4 {[%emt 0:03:09]} Ne5+ {[%emt 0:02:32]} 24. Kg5 {[%emt 0:02:43]} f6+ {[%emt 0:00:35]} 25. Kh6 {[%emt 0:04:59]} hxg6 {[%emt 0:00:17]} 26. Nc4 {[%emt 0:00:04]} Rd3 {[%emt 0:02:58]} 27. Qe2 {[%emt 0:00:39]} Be3+ {[%emt 0:01:14]} 28. Nxe3 {[%emt 0:00:07]} Nxe3 {[%emt 0:00:00]} 29. Qxe3 {[%emt 0:02:48]} Rxe3 {[%emt 0:00:06]} 30. Rc7 {[%emt 0:00:05]} Ng4+ {[%emt 0:01:23]} 31. Kxg6 {[%emt 0:00:05]} Be4+ {[%emt 0:00:06]} 32. Kh5 {[%emt 0:00:15]} Nxh2 {[%emt 0:00:14]} 33. Bd6 {[%emt 0:01:36]} Rd3 {[%emt 0:00:34]} 34. Bf4 {[%emt 0:01:00]} Rd5+ {[%emt 0:00:30]} 35. Kh4 {[%emt 0:00:06]} Bf3 {[%emt 0:00:40]} 36. g4 {[%emt 0:00:17]} Nxg4 {[%emt 0:00:11]} 37. Rc3 {[%emt 0:00:48]} Bd1 {[%emt 0:00:29]} 38. Rc6 {[%emt 0:00:05]} Rd4 {[%emt 0:00:29]} 39. Kg3 {[%emt 0:01:18]} Rd3+ {[%emt 0:00:07]} 40. Kh4 {[%emt 0:00:00]} Rxb3 {[%emt 0:00:00]} 0-1

[Event "EYCC Open-U18 2019"]
[Site "Bratislava"]
[Date "2019.08.06"]
[Round "5.27"]
[White "Chatzieleftheriou, Andreas"]
[Black "Omorjan, Dejan"]
[Result "1-0"]
[ECO "B51"]
[WhiteElo "2208"]
[BlackElo "2317"]
[Annotator "NA"]
[PlyCount "107"]
[EventDate "2019.08.02"]
[EventType "swiss"]
[EventCountry "SVK"]
[SourceTitle "playchess.com"]
[Source "ChessBase"]
[SourceQuality "1"]
[TimeControl "40/5400+30:1800+30"]

1. e4 {[%emt 0:00:00]} c5 {[%emt 0:00:00]} 2. Nf3 {[%emt 0:00:00]} d6 {[%emt 0:00:00]} 3. Bb5+ {[%emt 0:00:00]} Nd7 {[%emt 0:00:07]} 4. a4 {[%emt 0:00:16]} Ngf6 {[%emt 0:01:08]} 5. Nc3 {[%emt 0:00:26]} a6 {[%emt 0:06:22]} 6. Be2 {[%emt 0:01:38]} e5 {[%emt 0:02:26]} 7. d3 {[%emt 0:02:23]} Be7 {[%emt 0:06:55]} 8. O-O {[%emt 0:02:03]} Nf8 {[%emt 0:02:46]} 9. Nd2 {[%emt 0:04:25]} Ng6 {[%emt 0:05:51]} 10. Nc4 {[%emt 0:01:53]} Be6 {[%emt 0:04:26]} 11. a5 {[%emt 0:03:44]} O-O {[%emt 0:07:18]} 12. Nb6 {[%emt 0:05:47]} Rb8 {[%emt 0:01:15]} 13. Ncd5 {[%emt 0:03:05]} Bxd5 {[%emt 0:04:52]} 14. Nxd5 {[%emt 0:00:58]} Nxd5 {[%emt 0:01:24]} 15. exd5 {[%emt 0:00:09]} Bg5 {[%emt 0:01:23]} 16. Be3 {[%emt 0:05:31]} f5 {[%emt 0:03:21]} 17. Qc1 {[%emt 0:02:36]} Bxe3 {[%emt 0:06:22]} 18. fxe3 {[%emt 0:05:31]} Qh4 {[%emt 0:07:38]} 19. Qe1 {[%emt 0:09:16]} Qh6 {[%emt 0:03:28]} 20. Qg3 {[%emt 0:07:36]} Ne7 {[%emt 0:06:13]} 21. d4 {[%emt 0:04:12]} cxd4 {[%emt 0:03:22]} 22. exd4 {[%emt 0:00:13]} e4 {[%emt 0:02:22]} 23. Qf4 {[%emt 0:01:34]} g5 {[%emt 0:06:13]} 24. Qe3 {[%emt 0:02:54]} Qg6 {[%emt 0:02:12]} 25. Qh3 {[%emt 0:02:14]} Kh8 {[%emt 0:03:10]} 26. c4 {[%emt 0:01:20]} Qf6 {[%emt 0:04:45]} 27. Qe3 {[%emt 0:04:17]} Qg6 {[%emt 0:02:16]} 28. Qh3 {[%emt 0:00:48]} Rf6 {[%emt 0:02:09]} 29. Rad1 {[%emt 0:03:48]} f4 {[%emt 0:04:03]} 30. Bg4 {[%emt 0:02:28]} Kg7 31. Rfe1 {[%emt 0:00:31]} e3 {[%emt 0:00:57]} 32. Qf3 {[%emt 0:00:30]} Rh8 {[%emt 0:00:38]} 33. Bh5 {[%emt 0:00:50]} Qf5 {[%emt 0:00:08]} 34. Bg4 {[%emt 0:00:18]} Qc2 {[%emt 0:00:25]} 35. Qe2 {[%emt 0:00:08]} Qxe2 {[%emt 0:00:29]} 36. Rxe2 {[%emt 0:00:18]} h5 {[%emt 0:00:41]} 37. Be6 {[%emt 0:00:06]} Rd8 {[%emt 0:00:45]} 38. Rf1 {[%emt 0:00:55]} Nf5 {[%emt 0:00:31]} 39. Bxf5 {[%emt 0:00:12]} Rxf5 {[%emt 0:00:05]} 40. Rxe3 {[%emt 0:00:00]} fxe3 {[%emt 0:00:00]} 41. Rxf5 {[%emt 0:00:21]} Kg6 {[%emt 0:11:42]} 42. Rf3 {[%emt 0:06:57]} Re8 {[%emt 0:00:33]} 43. Kf1 {[%emt 0:00:04]} g4 {[%emt 0:05:22]} 44. Rf4 {[%emt 0:00:48]} Kg5 45. g3 {[%emt 0:18:45]} e2+ {[%emt 0:05:26]} 46. Ke1 {[%emt 0:00:30]} h4 {[%emt 0:01:00]} 47. Rf2 {[%emt 0:02:33]} hxg3 {[%emt 0:00:30]} 48. hxg3 {[%emt 0:00:02]} Re4 {[%emt 0:04:51]} 49. b3 {[%emt 0:00:47]} Re3 {[%emt 0:01:15]} 50. Rxe2 {[%emt 0:00:10]} Rxb3 {[%emt 0:02:17]} 51. c5 {[%emt 0:00:39]} Rd3 {[%emt 0:02:06]} 52. cxd6 {[%emt 0:00:25]} Rxd4 {[%emt 0:00:21]} 53. d7 {[%emt 0:00:11]} Rxd5 {[%emt 0:00:17]} 54. Rd2 {[%emt 0:00:04]} 1-0

[Event "EYCC Open-U18 2019"]
[Site "Bratislava"]
[Date "2019.08.06"]
[Round "5.28"]
[White "Mladek, Richard"]
[Black "Pektas, Yigit"]
[Result "1-0"]
[ECO "B12"]
[WhiteElo "2253"]
[BlackElo "2111"]
[Annotator "NA"]
[PlyCount "53"]
[EventDate "2019.08.02"]
[EventType "swiss"]
[EventCountry "SVK"]
[SourceTitle "playchess.com"]
[Source "ChessBase"]
[SourceQuality "1"]
[TimeControl "40/5400+30:1800+30"]

1. e4 {[%emt 0:00:00]} c6 {[%emt 0:00:00]} 2. d4 {[%emt 0:00:00]} d5 {[%emt 0:00:00]} 3. e5 {[%emt 0:00:00]} c5 {[%emt 0:00:00]} 4. dxc5 {[%emt 0:00:00]} Nc6 {[%emt 0:00:00]} 5. a3 {[%emt 0:00:35]} e6 {[%emt 0:09:32]} 6. Nf3 {[%emt 0:00:58]} a5 {[%emt 0:05:04]} 7. Be3 {[%emt 0:08:17]} Nh6 {[%emt 0:00:07]} 8. Bb5 {[%emt 0:00:59]} Nf5 {[%emt 0:06:17]} 9. Bd4 {[%emt 0:01:02]} Bd7 {[%emt 0:07:34]} 10. Bxc6 {[%emt 0:01:29]} Bxc6 {[%emt 0:00:05]} 11. O-O {[%emt 0:00:58]} Qc7 {[%emt 0:11:54]} 12. Nc3 {[%emt 0:01:12]} Be7 {[%emt 0:02:39]} 13. Re1 {[%emt 0:12:31]} O-O {[%emt 0:00:18]} 14. b4 {[%emt 0:07:54]} Rfb8 {[%emt 0:05:06]} 15. g4 {[%emt 0:03:28]} Nxd4 {[%emt 0:01:01]} 16. Nxd4 {[%emt 0:00:19]} Be8 {[%emt 0:00:52]} 17. Ncb5 {[%emt 0:02:31]} Bxb5 {[%emt 0:00:47]} 18. Nxb5 {[%emt 0:00:02]} Qc6 {[%emt 0:00:47]} 19. Nd4 {[%emt 0:01:18]} Qc7 {[%emt 0:01:04]} 20. c3 {[%emt 0:04:07]} b6 {[%emt 0:01:32]} 21. c6 {[%emt 0:00:58]} b5 {[%emt 0:00:28]} 22. f4 {[%emt 0:01:45]} Ra6 {[%emt 0:05:24]} 23. Qd3 {[%emt 0:03:54]} Qa7 {[%emt 0:00:55]} 24. Kg2 {[%emt 0:02:28]} axb4 {[%emt 0:01:52]} 25. Nxb5 {[%emt 0:02:10]} Rxb5 {[%emt 0:00:05]} 26. Qxb5 {[%emt 0:00:16]} bxc3 {[%emt 0:02:42]} 27. c7 {[%emt 0:01:38]} 1-0

[Event "EYCC Open-U18 2019"]
[Site "Bratislava"]
[Date "2019.08.06"]
[Round "5.29"]
[White "Pirard, Natan"]
[Black "Halfhide, Sebastian"]
[Result "1/2-1/2"]
[ECO "C72"]
[WhiteElo "2153"]
[BlackElo "2286"]
[Annotator "NA"]
[PlyCount "82"]
[EventDate "2019.08.02"]
[EventType "swiss"]
[EventCountry "SVK"]
[SourceTitle "playchess.com"]
[Source "ChessBase"]
[SourceQuality "1"]
[TimeControl "40/5400+30:1800+30"]

1. e4 {[%emt 0:00:00]} e5 {[%emt 0:00:15]} 2. Nf3 {[%emt 0:00:00]} Nc6 {[%emt 0:00:05]} 3. Bb5 {[%emt 0:05:46]} a6 {[%emt 0:00:31]} 4. Ba4 {[%emt 0:00:03]} d6 {[%emt 0:00:12]} 5. O-O {[%emt 0:01:37]} Bd7 {[%emt 0:01:44]} 6. Re1 {[%emt 0:04:01]} g6 {[%emt 0:06:40]} 7. c3 {[%emt 0:07:39]} Bg7 {[%emt 0:03:23]} 8. d4 {[%emt 0:00:18]} Nf6 {[%emt 0:16:41]} 9. dxe5 {[%emt 0:05:23]} Nxe5 {[%emt 0:05:16]} 10. Nxe5 {[%emt 0:01:15]} dxe5 {[%emt 0:00:43]} 11. Bg5 {[%emt 0:03:38]} b5 {[%emt 0:09:40]} 12. Bb3 {[%emt 0:02:01]} O-O {[%emt 0:02:43]} 13. a4 {[%emt 0:03:43]} Qe7 {[%emt 0:05:27]} 14. Na3 {[%emt 0:10:52]} h6 {[%emt 0:02:15]} 15. Bxf6 {[%emt 0:01:40]} Bxf6 {[%emt 0:00:05]} 16. Nc2 {[%emt 0:02:35]} Rfd8 {[%emt 0:06:04]} 17. Qe2 {[%emt 0:06:07]} Be8 {[%emt 0:03:58]} 18. Nb4 {[%emt 0:03:40]} c6 {[%emt 0:04:31]} 19. axb5 {[%emt 0:10:46]} axb5 {[%emt 0:00:05]} 20. Rxa8 {[%emt 0:00:45]} Rxa8 {[%emt 0:00:07]} 21. Rd1 {[%emt 0:00:12]} Kg7 {[%emt 0:08:04]} 22. Qe3 {[%emt 0:08:01]} Qa7 {[%emt 0:03:05]} 23. Qxa7 {[%emt 0:02:47]} Rxa7 {[%emt 0:00:04]} 24. Nd3 {[%emt 0:00:55]} Rd7 {[%emt 0:06:18]} 25. Kf1 {[%emt 0:01:15]} Kf8 {[%emt 0:02:34]} 26. Ke2 {[%emt 0:01:37]} Ra7 {[%emt 0:00:08]} 27. Ne1 {[%emt 0:08:39]} Be7 {[%emt 0:01:19]} 28. Nc2 {[%emt 0:00:53]} Bc5 {[%emt 0:03:31]} 29. Ra1 {[%emt 0:01:01]} Rxa1 {[%emt 0:00:43]} 30. Nxa1 {[%emt 0:00:03]} Ke7 {[%emt 0:01:16]} 31. Ba2 {[%emt 0:00:23]} f5 {[%emt 0:00:27]} 32. Nb3 {[%emt 0:02:00]} Bb6 {[%emt 0:00:15]} 33. Nd2 {[%emt 0:00:14]} Kf6 {[%emt 0:01:07]} 34. b4 {[%emt 0:02:43]} Bd7 {[%emt 0:02:06]} 35. Bb3 {[%emt 0:00:55]} h5 {[%emt 0:02:06]} 36. h3 {[%emt 0:01:42]} Ba7 {[%emt 0:01:42]} 37. Ba2 {[%emt 0:00:32]} Bc8 {[%emt 0:00:52]} 38. Bb3 {[%emt 0:01:47]} Bb7 {[%emt 0:01:15]} 39. Bc2 {[%emt 0:00:51]} Bc8 {[%emt 0:01:14]} 40. Bb3 {[%emt 0:00:00]} Ba6 {[%emt 0:00:00]} 41. Ba2 {[%emt 0:04:19]} Bc8 {[%emt 0:04:29]} 1/2-1/2

[Event "EYCC Open-U18 2019"]
[Site "Bratislava"]
[Date "2019.08.06"]
[Round "5.30"]
[White "Heimisson, Hilmir Freyr"]
[Black "Gray, Euan"]
[Result "1-0"]
[ECO "A20"]
[WhiteElo "2279"]
[BlackElo "2004"]
[Annotator "NA"]
[PlyCount "129"]
[EventDate "2019.08.02"]
[EventType "swiss"]
[EventCountry "SVK"]
[SourceTitle "playchess.com"]
[Source "ChessBase"]
[SourceQuality "1"]
[TimeControl "40/5400+30:1800+30"]

1. c4 {[%emt 0:00:00]} e5 {[%emt 0:00:00]} 2. g3 {[%emt 0:00:00]} Nc6 {[%emt 0:00:00]} 3. Bg2 {[%emt 0:00:00]} Nf6 {[%emt 0:00:14]} 4. Nf3 {[%emt 0:00:00]} Bc5 {[%emt 0:01:15]} 5. Nc3 {[%emt 0:00:25]} O-O {[%emt 0:04:53]} 6. O-O {[%emt 0:00:28]} d6 {[%emt 0:03:45]} 7. d3 {[%emt 0:02:52]} h6 {[%emt 0:02:19]} 8. a3 {[%emt 0:01:25]} Be6 {[%emt 0:07:45]} 9. b4 {[%emt 0:04:07]} Bb6 {[%emt 0:00:34]} 10. Bb2 {[%emt 0:06:05]} Nd7 {[%emt 0:13:31]} 11. Na4 {[%emt 0:11:13]} Qe7 {[%emt 0:16:00]} 12. Rc1 {[%emt 0:04:26]} a5 {[%emt 0:03:10]} 13. Qb3 {[%emt 0:16:27]} Kh8 {[%emt 0:10:35]} 14. e3 {[%emt 0:02:46]} Bg4 {[%emt 0:02:59]} 15. d4 {[%emt 0:09:25]} axb4 {[%emt 0:07:43]} 16. axb4 {[%emt 0:00:22]} Qf6 {[%emt 0:01:40]} 17. Nxb6 {[%emt 0:01:38]} Nxb6 {[%emt 0:00:18]} 18. dxe5 {[%emt 0:05:05]} dxe5 {[%emt 0:00:44]} 19. Nxe5 {[%emt 0:02:17]} Nxe5 {[%emt 0:00:26]} 20. f4 {[%emt 0:00:03]} Nbd7 {[%emt 0:02:50]} 21. fxe5 {[%emt 0:00:08]} Qe7 {[%emt 0:01:10]} 22. Qc3 {[%emt 0:02:54]} c6 {[%emt 0:02:38]} 23. Qd4 {[%emt 0:04:15]} Be6 {[%emt 0:00:26]} 24. b5 {[%emt 0:00:23]} Rfc8 {[%emt 0:01:57]} 25. bxc6 {[%emt 0:01:49]} bxc6 {[%emt 0:00:13]} 26. Ra1 {[%emt 0:00:19]} Rxa1 {[%emt 0:00:48]} 27. Rxa1 {[%emt 0:00:11]} Qb4 {[%emt 0:00:58]} 28. Bf1 {[%emt 0:07:11]} Rb8 {[%emt 0:03:14]} 29. Ba3 {[%emt 0:00:31]} Qb3 {[%emt 0:00:45]} 30. Bd6 {[%emt 0:00:37]} Rc8 {[%emt 0:00:10]} 31. c5 {[%emt 0:02:36]} Re8 {[%emt 0:03:15]} 32. Bg2 {[%emt 0:00:54]} Rc8 {[%emt 0:02:17]} 33. Rf1 {[%emt 0:02:45]} Bc4 {[%emt 0:01:54]} 34. Ra1 {[%emt 0:01:06]} Be6 {[%emt 0:00:06]} 35. h3 {[%emt 0:00:12]} Bd5 {[%emt 0:01:02]} 36. Bxd5 {[%emt 0:01:25]} Qxd5 {[%emt 0:00:58]} 37. Qxd5 {[%emt 0:00:55]} cxd5 {[%emt 0:00:02]} 38. Rc1 {[%emt 0:00:14]} Rc6 {[%emt 0:00:13]} 39. Kf2 {[%emt 0:02:29]} Kg8 {[%emt 0:04:50]} 40. Ke2 {[%emt 0:00:00]} Nf8 {[%emt 0:00:00]} 41. Bxf8 {[%emt 0:03:55]} Kxf8 {[%emt 0:01:43]} 42. Kd3 {[%emt 0:00:02]} Ke7 {[%emt 0:06:17]} 43. Kd4 {[%emt 0:00:14]} Kd7 {[%emt 0:00:25]} 44. Rf1 {[%emt 0:02:39]} Ra6 {[%emt 0:01:55]} 45. Kxd5 {[%emt 0:00:18]} f6 {[%emt 0:00:06]} 46. Rb1 {[%emt 0:01:49]} Kc7 {[%emt 0:01:30]} 47. Rb6 {[%emt 0:02:40]} Ra3 {[%emt 0:00:30]} 48. exf6 {[%emt 0:00:48]} gxf6 {[%emt 0:00:16]} 49. Rxf6 {[%emt 0:02:03]} Rxe3 {[%emt 0:00:25]} 50. Rf7+ {[%emt 0:00:05]} Kc8 {[%emt 0:00:23]} 51. Rg7 {[%emt 0:00:54]} h5 {[%emt 0:01:02]} 52. Kd6 {[%emt 0:01:46]} Rd3+ {[%emt 0:01:23]} 53. Kc6 {[%emt 0:00:17]} Kb8 {[%emt 0:00:06]} 54. Rg8+ {[%emt 0:00:17]} Ka7 {[%emt 0:00:02]} 55. Kc7 {[%emt 0:00:11]} h4 {[%emt 0:00:40]} 56. gxh4 {[%emt 0:01:14]} Rxh3 {[%emt 0:00:13]} 57. Rg4 {[%emt 0:00:22]} Ka6 {[%emt 0:00:37]} 58. c6 {[%emt 0:00:11]} Rf3 {[%emt 0:02:03]} 59. Rg8 {[%emt 0:03:47]} Ka7 {[%emt 0:03:53]} 60. Kc8 {[%emt 0:00:45]} Rd3 {[%emt 0:06:47]} 61. h5 {[%emt 0:03:10]} Kb6 {[%emt 0:01:03]} 62. c7 {[%emt 0:00:46]} Ra3 {[%emt 0:00:21]} 63. Rg6+ {[%emt 0:00:18]} Ka7 {[%emt 0:00:06]} 64. Kd7 {[%emt 0:00:19]} Rd3+ {[%emt 0:00:07]} 65. Rd6 {[%emt 0:00:06]} 1-0